[Event "Titled Tuesday Blitz May 30 Early 2023"]
[White "ChawitAp"]
[Black "Do Nascimento,Christian Almeida"]
[BlackFideId "2143801"]
[WhiteElo "2403"]
[BlackElo "2118"]
[Result "1-0"]
[Round "04"]
[TimeControl "180+2"]
[Date "2023.05.30"]
[WhiteClock "0:00:35"]
[BlackClock "0:00:02"]

1. d4 {[%clk 0:02:59]}  c5 {[%clk 0:02:56]} 2. c3 {[%clk 0:02:59]}  Nf6 {[%clk 0:02:56]} 3. Nf3 {[%clk 0:03:00]}  g6 {[%clk 0:02:56]} 4. Bf4 {[%clk 0:02:59]}  cxd4 {[%clk 0:02:56]} 5. cxd4 {[%clk 0:02:59]}  Bg7 {[%clk 0:02:56]} 6. Nbd2 {[%clk 0:02:59]}  O-O {[%clk 0:02:55]} 7. e3 {[%clk 0:02:59]}  d5 {[%clk 0:02:51]} 8. Be2 {[%clk 0:02:58]}  Nc6 {[%clk 0:02:52]} 9. O-O {[%clk 0:02:58]}  Bf5 {[%clk 0:02:52]} 10. a3 {[%clk 0:02:57]}  Rc8 {[%clk 0:02:51]} 11. Rc1 {[%clk 0:02:56]}  Qb6 {[%clk 0:02:43]} 12. b4 {[%clk 0:02:54]}  Ne4 {[%clk 0:02:43]} 13. Nxe4 {[%clk 0:02:53]}  Bxe4 {[%clk 0:02:26]} 14. Qb3 {[%clk 0:02:52]}  Rfd8 {[%clk 0:01:51]} 15. Nd2 {[%clk 0:02:50]}  Bf5 {[%clk 0:01:40]} 16. Bf3 {[%clk 0:02:48]}  Be6 {[%clk 0:01:09]} 17. Rc5 {[%clk 0:02:42]}  Nb8 {[%clk 0:00:55]} 18. Rfc1 {[%clk 0:02:29]}  Rxc5 {[%clk 0:00:53]} 19. Rxc5 {[%clk 0:02:16]}  Nd7 {[%clk 0:00:47]} 20. Rc3 {[%clk 0:02:00]}  Qa6 {[%clk 0:00:19]} 21. Bxd5 {[%clk 0:01:33]}  Nf8 {[%clk 0:00:16]} 22. Bc4 {[%clk 0:01:18]}  Bxc4 {[%clk 0:00:15]} 23. Qxc4 {[%clk 0:01:18]}  Qa4 {[%clk 0:00:14]} 24. Qb3 {[%clk 0:00:59]}  Qd7 {[%clk 0:00:14]} 25. Rc7 {[%clk 0:00:58]}  Qe8 {[%clk 0:00:13]} 26. Rxb7 {[%clk 0:00:56]}  e5 {[%clk 0:00:13]} 27. Bg5 {[%clk 0:00:47]}  Rc8 {[%clk 0:00:12]} 28. Re7 {[%clk 0:00:42]}  Rc1+ {[%clk 0:00:05]} 29. Nf1 {[%clk 0:00:43]}  Rxf1+ {[%clk 0:00:05]} 30. Kxf1 {[%clk 0:00:44]}  Qb5+ {[%clk 0:00:05]} 31. Ke1 {[%clk 0:00:43]}  Ne6 {[%clk 0:00:06]} 32. Rxe6 {[%clk 0:00:39]}  fxe6 {[%clk 0:00:06]} 33. Qxe6+ {[%clk 0:00:40]}  Kf8 {[%clk 0:00:04]} 34. Be7+ {[%clk 0:00:37]}  Ke8 {[%clk 0:00:04]} 35. Bf6+ {[%clk 0:00:35]}  Kf8 {[%clk 0:00:02]} 36. Qe7+ {[%clk 0:00:35]} 1-0


[Site "https://www.chess.com"]

[Event "Titled Tuesday Blitz May 30 Early 2023"]
[White "Gontcharov, Vladislav"]
[Black "Dwilewicz, Katarzyna"]
[WhiteFideId "4123492"]
[BlackFideId "1148486"]
[WhiteElo "2420"]
[BlackElo "2065"]
[Result "1-0"]
[Round "04"]
[TimeControl "180+2"]
[Date "2023.05.30"]
[WhiteClock "0:00:28"]
[BlackClock "0:00:01"]

1. d4 {[%clk 0:03:00]}  Nf6 {[%clk 0:02:59]} 2. c4 {[%clk 0:02:57]}  g6 {[%clk 0:02:59]} 3. Nc3 {[%clk 0:02:57]}  Bg7 {[%clk 0:03:00]} 4. Nf3 {[%clk 0:02:57]}  O-O {[%clk 0:03:00]} 5. Bg5 {[%clk 0:02:57]}  h6 {[%clk 0:02:46]} 6. Bh4 {[%clk 0:02:57]}  d6 {[%clk 0:02:43]} 7. e3 {[%clk 0:02:55]}  Bf5 {[%clk 0:02:38]} 8. Be2 {[%clk 0:02:53]}  Nbd7 {[%clk 0:02:35]} 9. Nd2 {[%clk 0:02:45]}  g5 {[%clk 0:02:12]} 10. Bg3 {[%clk 0:02:44]}  c5 {[%clk 0:02:12]} 11. d5 {[%clk 0:02:23]}  Ne5 {[%clk 0:02:01]} 12. e4 {[%clk 0:02:23]}  Bg6 {[%clk 0:02:01]} 13. h4 {[%clk 0:02:15]}  g4 {[%clk 0:01:35]} 14. Bxe5 {[%clk 0:02:11]}  dxe5 {[%clk 0:01:35]} 15. Bxg4 {[%clk 0:02:11]}  Nxg4 {[%clk 0:01:30]} 16. Qxg4 {[%clk 0:02:10]}  h5 {[%clk 0:01:27]} 17. Qg3 {[%clk 0:02:06]}  Kh7 {[%clk 0:01:23]} 18. O-O-O {[%clk 0:02:04]}  Rg8 {[%clk 0:01:06]} 19. Qe3 {[%clk 0:01:58]}  Rc8 {[%clk 0:01:03]} 20. f3 {[%clk 0:01:53]}  Bh6 {[%clk 0:00:59]} 21. Qe2 {[%clk 0:01:53]}  Qa5 {[%clk 0:00:59]} 22. Kb1 {[%clk 0:01:51]}  a6 {[%clk 0:00:57]} 23. g4 {[%clk 0:01:45]}  Rb8 {[%clk 0:00:55]} 24. g5 {[%clk 0:01:44]}  Bg7 {[%clk 0:00:53]} 25. Rc1 {[%clk 0:01:18]}  b5 {[%clk 0:00:52]} 26. Nd1 {[%clk 0:01:18]}  Rb6 {[%clk 0:00:37]} 27. cxb5 {[%clk 0:01:13]}  Rxb5 {[%clk 0:00:34]} 28. Nc4 {[%clk 0:01:12]}  Qc7 {[%clk 0:00:24]} 29. Nde3 {[%clk 0:01:08]}  Rgb8 {[%clk 0:00:23]} 30. Rhd1 {[%clk 0:01:06]}  Qb7 {[%clk 0:00:20]} 31. Rc2 {[%clk 0:01:03]}  a5 {[%clk 0:00:20]} 32. d6 {[%clk 0:01:02]}  a4 {[%clk 0:00:11]} 33. Nd5 {[%clk 0:00:44]}  e6 {[%clk 0:00:07]} 34. Nc3 {[%clk 0:00:39]}  Rb4 {[%clk 0:00:06]} 35. a3 {[%clk 0:00:38]}  Rb3 {[%clk 0:00:05]} 36. Nxa4 {[%clk 0:00:38]}  Qa6 {[%clk 0:00:05]} 37. Nxc5 {[%clk 0:00:38]}  Rxb2+ {[%clk 0:00:04]} 38. Nxb2 {[%clk 0:00:35]}  Qxa3 {[%clk 0:00:03]} 39. d7 {[%clk 0:00:35]}  Ra8 {[%clk 0:00:04]} 40. Kc1 {[%clk 0:00:28]}  Qa1+ {[%clk 0:00:04]} 41. Kd2 {[%clk 0:00:28]}  Qa5+ {[%clk 0:00:04]} 42. Ke3 {[%clk 0:00:28]}  Qxc5+ {[%clk 0:00:01]} 43. Rxc5 {[%clk 0:00:28]} 1-0


[Site "https://www.chess.com"]

[Event "Titled Tuesday Blitz May 30 Early 2023"]
[White "Urbina Perez, Juan Antonio"]
[Black "Ozates, Tuna"]
[WhiteFideId "2217368"]
[BlackFideId "6354521"]
[WhiteElo "2197"]
[BlackElo "2151"]
[Result "0-1"]
[Round "04"]
[TimeControl "180+2"]
[Date "2023.05.30"]
[WhiteClock "0:00:24"]
[BlackClock "0:00:57"]

1. d4 {[%clk 0:03:00]}  g6 {[%clk 0:02:53]} 2. Nf3 {[%clk 0:02:56]}  Bg7 {[%clk 0:02:53]} 3. e4 {[%clk 0:02:55]}  d6 {[%clk 0:02:48]} 4. Bd3 {[%clk 0:02:55]}  Nc6 {[%clk 0:02:45]} 5. d5 {[%clk 0:02:54]}  Nb4 {[%clk 0:02:38]} 6. Be2 {[%clk 0:02:53]}  Nf6 {[%clk 0:02:33]} 7. c3 {[%clk 0:02:52]}  Na6 {[%clk 0:02:33]} 8. Bxa6 {[%clk 0:02:52]}  bxa6 {[%clk 0:02:33]} 9. Qe2 {[%clk 0:02:51]}  O-O {[%clk 0:02:33]} 10. O-O {[%clk 0:02:51]}  e6 {[%clk 0:02:32]} 11. c4 {[%clk 0:02:48]}  Re8 {[%clk 0:02:30]} 12. Qd3 {[%clk 0:02:41]}  exd5 {[%clk 0:02:26]} 13. exd5 {[%clk 0:02:42]}  Bf5 {[%clk 0:02:25]} 14. Qd1 {[%clk 0:02:41]}  Rb8 {[%clk 0:02:23]} 15. Nc3 {[%clk 0:02:40]}  Ne4 {[%clk 0:02:23]} 16. Nxe4 {[%clk 0:02:35]}  Rxe4 {[%clk 0:02:24]} 17. Nd2 {[%clk 0:02:25]}  Rd4 {[%clk 0:02:24]} 18. Re1 {[%clk 0:02:24]}  a5 {[%clk 0:02:11]} 19. Qa4 {[%clk 0:02:20]}  Rd3 {[%clk 0:01:57]} 20. Qxa5 {[%clk 0:02:02]}  Bxb2 {[%clk 0:01:50]} 21. Bxb2 {[%clk 0:02:03]}  Rxb2 {[%clk 0:01:51]} 22. Nf1 {[%clk 0:02:03]}  Qh4 {[%clk 0:01:30]} 23. Ng3 {[%clk 0:01:45]}  Qd4 {[%clk 0:01:22]} 24. Rf1 {[%clk 0:01:02]}  Rdd2 {[%clk 0:01:09]} 25. Qxc7 {[%clk 0:00:54]}  Rxf2 {[%clk 0:01:08]} 26. Qd8+ {[%clk 0:00:50]}  Kg7 {[%clk 0:01:07]} 27. Nxf5+ {[%clk 0:00:35]}  Rxf5+ {[%clk 0:01:08]} 28. Kh1 {[%clk 0:00:35]}  Rbf2 {[%clk 0:00:59]} 29. Rg1 {[%clk 0:00:24]}  Qxa1 {[%clk 0:00:57]} 0-1


[Site "https://www.chess.com"]

[Event "Titled Tuesday Blitz May 30 Early 2023"]
[White "Goffredo_Fofi"]
[Black "Manon-og, Ramon Jr."]
[BlackFideId "5200776"]
[WhiteElo "2506"]
[BlackElo "2346"]
[Result "1-0"]
[Round "04"]
[TimeControl "180+2"]
[Date "2023.05.30"]
[WhiteClock "0:01:15"]
[BlackClock "0:01:22"]

1. d4 {[%clk 0:02:59]}  Nf6 {[%clk 0:02:59]} 2. Nf3 {[%clk 0:02:58]}  g6 {[%clk 0:03:00]} 3. c4 {[%clk 0:02:58]}  d5 {[%clk 0:03:00]} 4. cxd5 {[%clk 0:02:58]}  Nxd5 {[%clk 0:03:01]} 5. e4 {[%clk 0:02:56]}  Nb6 {[%clk 0:03:01]} 6. Nc3 {[%clk 0:02:55]}  Bg7 {[%clk 0:03:02]} 7. h3 {[%clk 0:02:55]}  O-O {[%clk 0:03:02]} 8. Be2 {[%clk 0:02:52]}  N8d7 {[%clk 0:03:03]} 9. O-O {[%clk 0:02:50]}  c5 {[%clk 0:03:03]} 10. d5 {[%clk 0:02:44]}  Ne5 {[%clk 0:02:56]} 11. Nxe5 {[%clk 0:02:41]}  Bxe5 {[%clk 0:02:57]} 12. Be3 {[%clk 0:02:41]}  Nd7 {[%clk 0:02:46]} 13. f4 {[%clk 0:02:36]}  Bg7 {[%clk 0:02:46]} 14. a4 {[%clk 0:02:09]}  b6 {[%clk 0:02:43]} 15. e5 {[%clk 0:01:56]}  Bb7 {[%clk 0:02:36]} 16. Bc4 {[%clk 0:01:51]}  a6 {[%clk 0:02:28]} 17. Qe2 {[%clk 0:01:49]}  Kh8 {[%clk 0:02:19]} 18. Rad1 {[%clk 0:01:48]}  f6 {[%clk 0:02:15]} 19. e6 {[%clk 0:01:48]}  Nb8 {[%clk 0:02:15]} 20. f5 {[%clk 0:01:48]}  gxf5 {[%clk 0:02:12]} 21. Rxf5 {[%clk 0:01:45]}  Rg8 {[%clk 0:02:11]} 22. Rh5 {[%clk 0:01:44]}  Qe8 {[%clk 0:02:08]} 23. Bd3 {[%clk 0:01:40]}  h6 {[%clk 0:01:38]} 24. Bxh6 {[%clk 0:01:39]}  Bxh6 {[%clk 0:01:38]} 25. Rxh6+ {[%clk 0:01:40]}  Kg7 {[%clk 0:01:38]} 26. Rh7+ {[%clk 0:01:35]}  Kf8 {[%clk 0:01:38]} 27. Rf7+ {[%clk 0:01:35]}  Qxf7 {[%clk 0:01:38]} 28. exf7 {[%clk 0:01:36]}  Kxf7 {[%clk 0:01:39]} 29. Qe6+ {[%clk 0:01:34]}  Kf8 {[%clk 0:01:38]} 30. Rf1 {[%clk 0:01:20]}  b5 {[%clk 0:01:32]} 31. Be4 {[%clk 0:01:17]}  b4 {[%clk 0:01:22]} 32. d6 {[%clk 0:01:15]} 1-0


[Site "https://www.chess.com"]

[Event "Titled Tuesday Blitz May 30 Early 2023"]
[White "Szente Varga, Fruzsina"]
[Black "Yurasova, Daria"]
[WhiteFideId "712264"]
[BlackFideId "34146919"]
[WhiteElo "1994"]
[BlackElo "2109"]
[Result "1-0"]
[Round "04"]
[TimeControl "180+2"]
[Date "2023.05.30"]
[WhiteClock "0:00:15"]
[BlackClock "0:00:02"]

1. e4 {[%clk 0:03:00]}  e5 {[%clk 0:03:00]} 2. d4 {[%clk 0:02:56]}  exd4 {[%clk 0:02:59]} 3. Qxd4 {[%clk 0:02:56]}  Nc6 {[%clk 0:02:59]} 4. Qe3 {[%clk 0:02:57]}  b6 {[%clk 0:02:56]} 5. Bd2 {[%clk 0:02:57]}  Bc5 {[%clk 0:02:53]} 6. Qg3 {[%clk 0:02:56]}  Qf6 {[%clk 0:02:41]} 7. Nc3 {[%clk 0:02:56]}  Bd6 {[%clk 0:02:33]} 8. f4 {[%clk 0:02:54]}  Bb4 {[%clk 0:02:25]} 9. O-O-O {[%clk 0:02:51]}  Nge7 {[%clk 0:02:24]} 10. Nf3 {[%clk 0:02:36]}  Bb7 {[%clk 0:02:18]} 11. Nb5 {[%clk 0:02:21]}  Bxd2+ {[%clk 0:02:15]} 12. Rxd2 {[%clk 0:02:22]}  O-O-O {[%clk 0:01:53]} 13. Bd3 {[%clk 0:02:04]}  a6 {[%clk 0:01:52]} 14. Nc3 {[%clk 0:02:01]}  Nb4 {[%clk 0:01:32]} 15. Bc4 {[%clk 0:01:54]}  d5 {[%clk 0:01:22]} 16. exd5 {[%clk 0:01:38]}  Nexd5 {[%clk 0:01:18]} 17. Nxd5 {[%clk 0:01:38]}  Nxd5 {[%clk 0:01:16]} 18. Ne5 {[%clk 0:01:19]}  Qxf4 {[%clk 0:01:00]} 19. Bxd5 {[%clk 0:01:11]}  Qxd2+ {[%clk 0:00:45]} 20. Kxd2 {[%clk 0:01:11]}  Rxd5+ {[%clk 0:00:46]} 21. Kc1 {[%clk 0:01:11]}  f6 {[%clk 0:00:40]} 22. Qxg7 {[%clk 0:01:01]}  Rhd8 {[%clk 0:00:37]} 23. Qxf6 {[%clk 0:00:58]}  R5d6 {[%clk 0:00:29]} 24. Qf5+ {[%clk 0:00:56]}  Kb8 {[%clk 0:00:29]} 25. Nd3 {[%clk 0:00:41]}  Bxg2 {[%clk 0:00:27]} 26. Rg1 {[%clk 0:00:41]}  Bc6 {[%clk 0:00:26]} 27. Rg7 {[%clk 0:00:40]}  Bb5 {[%clk 0:00:25]} 28. Rg3 {[%clk 0:00:33]}  h6 {[%clk 0:00:21]} 29. b3 {[%clk 0:00:33]}  Bd7 {[%clk 0:00:19]} 30. Qh7 {[%clk 0:00:31]}  Bc6 {[%clk 0:00:18]} 31. Ne5 {[%clk 0:00:29]}  Bb7 {[%clk 0:00:19]} 32. Rg8 {[%clk 0:00:26]}  Rc8 {[%clk 0:00:19]} 33. Rxc8+ {[%clk 0:00:25]}  Bxc8 {[%clk 0:00:20]} 34. Nc4 {[%clk 0:00:23]}  Re6 {[%clk 0:00:19]} 35. Qf7 {[%clk 0:00:22]}  Re1+ {[%clk 0:00:18]} 36. Kb2 {[%clk 0:00:22]}  Re6 {[%clk 0:00:19]} 37. h4 {[%clk 0:00:22]}  a5 {[%clk 0:00:18]} 38. h5 {[%clk 0:00:23]}  Rc6 {[%clk 0:00:15]} 39. Ne5 {[%clk 0:00:23]}  Rc5 {[%clk 0:00:15]} 40. Nd3 {[%clk 0:00:19]}  Rg5 {[%clk 0:00:12]} 41. Nf4 {[%clk 0:00:18]}  Rf5 {[%clk 0:00:12]} 42. Qc4 {[%clk 0:00:17]}  Bb7 {[%clk 0:00:06]} 43. Ne6 {[%clk 0:00:17]}  Rf7 {[%clk 0:00:05]} 44. Nc5 {[%clk 0:00:14]}  Rf5 {[%clk 0:00:03]} 45. Nxb7 {[%clk 0:00:15]}  Kxb7 {[%clk 0:00:02]} 46. Qe4+ {[%clk 0:00:15]} 1-0


[Site "https://www.chess.com"]

[Event "Titled Tuesday Blitz May 30 Early 2023"]
[White "Janaszak, Dawid"]
[Black "Korpics, Zsolt"]
[WhiteFideId "1119206"]
[BlackFideId "705241"]
[WhiteElo "2220"]
[BlackElo "2337"]
[Result "0-1"]
[Round "04"]
[TimeControl "180+2"]
[Date "2023.05.30"]
[WhiteClock "0:00:00"]
[BlackClock "0:00:08"]

1. e4 {[%clk 0:02:54]}  c5 {[%clk 0:03:00]} 2. Nf3 {[%clk 0:02:51]}  e6 {[%clk 0:03:00]} 3. b4 {[%clk 0:02:51]}  b6 {[%clk 0:02:59]} 4. bxc5 {[%clk 0:02:49]}  bxc5 {[%clk 0:02:59]} 5. Nc3 {[%clk 0:02:50]}  Nc6 {[%clk 0:02:58]} 6. Bc4 {[%clk 0:02:48]}  Na5 {[%clk 0:02:53]} 7. Bb5 {[%clk 0:02:47]}  a6 {[%clk 0:02:50]} 8. Be2 {[%clk 0:02:47]}  Bb7 {[%clk 0:02:49]} 9. O-O {[%clk 0:02:47]}  d6 {[%clk 0:02:48]} 10. d4 {[%clk 0:02:47]}  cxd4 {[%clk 0:02:48]} 11. Nxd4 {[%clk 0:02:46]}  Nf6 {[%clk 0:02:47]} 12. Bf3 {[%clk 0:02:44]}  Be7 {[%clk 0:02:42]} 13. Rb1 {[%clk 0:02:44]}  Rb8 {[%clk 0:02:32]} 14. Nb3 {[%clk 0:02:31]}  Nc4 {[%clk 0:02:24]} 15. Re1 {[%clk 0:02:19]}  O-O {[%clk 0:02:23]} 16. Bf4 {[%clk 0:02:15]}  h6 {[%clk 0:02:13]} 17. Nd2 {[%clk 0:02:00]}  Ne5 {[%clk 0:02:11]} 18. Bxe5 {[%clk 0:01:55]}  dxe5 {[%clk 0:02:11]} 19. Nc4 {[%clk 0:01:52]}  Qc7 {[%clk 0:02:11]} 20. Be2 {[%clk 0:01:37]}  Nxe4 {[%clk 0:02:06]} 21. Nxe4 {[%clk 0:01:30]}  Bxe4 {[%clk 0:02:05]} 22. Bf1 {[%clk 0:01:28]}  f5 {[%clk 0:01:42]} 23. f3 {[%clk 0:01:17]}  Bd5 {[%clk 0:01:19]} 24. Nxe5 {[%clk 0:01:17]}  Bxa2 {[%clk 0:01:16]} 25. Ra1 {[%clk 0:01:10]}  Bd5 {[%clk 0:00:56]} 26. Rxa6 {[%clk 0:01:09]}  Bd6 {[%clk 0:00:53]} 27. f4 {[%clk 0:00:48]}  Rb6 {[%clk 0:00:47]} 28. Rxb6 {[%clk 0:00:45]}  Qxb6+ {[%clk 0:00:48]} 29. Kh1 {[%clk 0:00:46]}  Qf2 {[%clk 0:00:25]} 30. Nd3 {[%clk 0:00:31]}  Qd4 {[%clk 0:00:22]} 31. Qe2 {[%clk 0:00:30]}  Be4 {[%clk 0:00:19]} 32. h3 {[%clk 0:00:25]}  Rc8 {[%clk 0:00:18]} 33. Kh2 {[%clk 0:00:24]}  Bxd3 {[%clk 0:00:16]} 34. Qxd3 {[%clk 0:00:25]}  Qxf4+ {[%clk 0:00:16]} 35. g3 {[%clk 0:00:25]}  Qf2+ {[%clk 0:00:15]} 36. Bg2 {[%clk 0:00:25]}  Rxc2 {[%clk 0:00:09]} 37. Rg1 {[%clk 0:00:21]}  Bc5 {[%clk 0:00:08]} 38. Qd8+ {[%clk 0:00:00]}  Kh7 {[%clk 0:00:08]} 0-1


[Site "https://www.chess.com"]

[Event "Titled Tuesday Blitz May 30 Early 2023"]
[White "lluiss"]
[Black "Sowul, Bartosz"]
[BlackFideId "1137590"]
[WhiteElo "2312"]
[BlackElo "2188"]
[Result "0-1"]
[Round "04"]
[TimeControl "180+2"]
[Date "2023.05.30"]
[WhiteClock "0:00:00"]
[BlackClock "0:00:11"]

1. Nf3 {[%clk 0:03:00]}  Nf6 {[%clk 0:02:59]} 2. d4 {[%clk 0:03:00]}  c5 {[%clk 0:02:59]} 3. c4 {[%clk 0:02:55]}  e6 {[%clk 0:02:55]} 4. Nc3 {[%clk 0:02:53]}  cxd4 {[%clk 0:02:53]} 5. Nxd4 {[%clk 0:02:53]}  Nc6 {[%clk 0:02:54]} 6. a3 {[%clk 0:02:52]}  Bc5 {[%clk 0:02:53]} 7. Nb3 {[%clk 0:02:52]}  Bb6 {[%clk 0:02:54]} 8. g3 {[%clk 0:02:33]}  O-O {[%clk 0:02:47]} 9. Bg2 {[%clk 0:02:33]}  a5 {[%clk 0:02:38]} 10. a4 {[%clk 0:02:23]}  Ne5 {[%clk 0:02:25]} 11. c5 {[%clk 0:02:21]}  Bc7 {[%clk 0:02:23]} 12. O-O {[%clk 0:02:20]}  d6 {[%clk 0:02:15]} 13. Nb5 {[%clk 0:02:13]}  dxc5 {[%clk 0:01:55]} 14. Qxd8 {[%clk 0:02:00]}  Bxd8 {[%clk 0:01:55]} 15. Nxc5 {[%clk 0:02:00]}  Nd5 {[%clk 0:01:46]} 16. Nd6 {[%clk 0:01:32]}  b6 {[%clk 0:01:35]} 17. Nxc8 {[%clk 0:01:21]}  Rxc8 {[%clk 0:01:35]} 18. Nb3 {[%clk 0:01:11]}  Nb4 {[%clk 0:01:31]} 19. Nd4 {[%clk 0:01:04]}  Nc2 {[%clk 0:01:25]} 20. Nxc2 {[%clk 0:01:00]}  Rxc2 {[%clk 0:01:26]} 21. Be3 {[%clk 0:00:44]}  Nc4 {[%clk 0:01:16]} 22. Bd4 {[%clk 0:00:42]}  Rxe2 {[%clk 0:01:07]} 23. Rfc1 {[%clk 0:00:42]}  Nd6 {[%clk 0:00:40]} 24. Rc6 {[%clk 0:00:41]}  Nf5 {[%clk 0:00:34]} 25. Bc3 {[%clk 0:00:37]}  h5 {[%clk 0:00:29]} 26. Bf3 {[%clk 0:00:37]}  Rc2 {[%clk 0:00:25]} 27. Bd1 {[%clk 0:00:37]}  Nd4 {[%clk 0:00:24]} 28. Rc8 {[%clk 0:00:31]}  Nb3 {[%clk 0:00:15]} 29. Rb1 {[%clk 0:00:17]}  Rc1 {[%clk 0:00:16]} 30. Rxc1 {[%clk 0:00:17]}  Nxc1 {[%clk 0:00:17]} 31. Bd4 {[%clk 0:00:09]}  Nd3 {[%clk 0:00:16]} 32. b3 {[%clk 0:00:06]}  Nb4 {[%clk 0:00:16]} 33. Be2 {[%clk 0:00:04]}  f6 {[%clk 0:00:14]} 34. Bc4 {[%clk 0:00:03]}  Nd5 {[%clk 0:00:14]} 35. Bxd5 {[%clk 0:00:02]}  exd5 {[%clk 0:00:15]} 36. Rb8 {[%clk 0:00:02]}  Bc7 {[%clk 0:00:15]} 37. Rb7 {[%clk 0:00:02]}  Be5 {[%clk 0:00:15]} 38. Bxb6 {[%clk 0:00:02]}  Rc8 {[%clk 0:00:15]} 39. Bxa5 {[%clk 0:00:01]}  d4 {[%clk 0:00:14]} 40. Kg2 {[%clk 0:00:02]}  d3 {[%clk 0:00:14]} 41. Rd7 {[%clk 0:00:02]}  Rc2 {[%clk 0:00:11]} 42. Rd5 {[%clk 0:00:02]}  d2 {[%clk 0:00:09]} 43. Rxd2 {[%clk 0:00:01]}  Rb2 {[%clk 0:00:10]} 44. Rxb2 {[%clk 0:00:01]}  Bxb2 {[%clk 0:00:11]} 45. b4 {[%clk 0:00:00]}  Bc3 {[%clk 0:00:11]} 0-1


[Site "https://www.chess.com"]

[Event "Titled Tuesday Blitz May 30 Early 2023"]
[White "Kokoszczynski, Jan"]
[Black "Cupid, Kevin"]
[WhiteFideId "1174460"]
[BlackFideId "7700512"]
[WhiteElo "2139"]
[BlackElo "2124"]
[Result "1-0"]
[Round "04"]
[TimeControl "180+2"]
[Date "2023.05.30"]
[WhiteClock "0:00:07"]
[BlackClock "0:00:13"]

1. c4 {[%clk 0:02:56]}  e5 {[%clk 0:02:56]} 2. Nc3 {[%clk 0:02:56]}  Bb4 {[%clk 0:02:56]} 3. Nd5 {[%clk 0:02:54]}  Bc5 {[%clk 0:02:56]} 4. Nf3 {[%clk 0:02:23]}  d6 {[%clk 0:02:35]} 5. d4 {[%clk 0:02:20]}  exd4 {[%clk 0:02:35]} 6. Nxd4 {[%clk 0:02:20]}  c6 {[%clk 0:02:31]} 7. Nc3 {[%clk 0:02:18]}  Nf6 {[%clk 0:02:31]} 8. Bg5 {[%clk 0:02:14]}  h6 {[%clk 0:02:30]} 9. Bh4 {[%clk 0:02:14]}  Qb6 {[%clk 0:02:17]} 10. Nb3 {[%clk 0:01:58]}  Be6 {[%clk 0:02:09]} 11. e3 {[%clk 0:01:46]}  Nbd7 {[%clk 0:02:03]} 12. Be2 {[%clk 0:01:36]}  Ne5 {[%clk 0:01:56]} 13. O-O {[%clk 0:01:11]}  Nxc4 {[%clk 0:01:48]} 14. Na4 {[%clk 0:01:02]}  Qb4 {[%clk 0:01:39]} 15. Bxf6 {[%clk 0:00:50]}  gxf6 {[%clk 0:01:39]} 16. Naxc5 {[%clk 0:00:50]}  dxc5 {[%clk 0:01:39]} 17. Qc2 {[%clk 0:00:48]}  O-O-O {[%clk 0:01:32]} 18. Rfc1 {[%clk 0:00:22]}  Kb8 {[%clk 0:00:33]} 19. Bxc4 {[%clk 0:00:21]}  Rhg8 {[%clk 0:00:29]} 20. Bxe6 {[%clk 0:00:18]}  fxe6 {[%clk 0:00:30]} 21. Qxc5 {[%clk 0:00:12]}  Qg4 {[%clk 0:00:29]} 22. g3 {[%clk 0:00:10]}  Rd5 {[%clk 0:00:29]} 23. Qc4 {[%clk 0:00:07]}  Qh3 {[%clk 0:00:29]} 24. Qf4+ {[%clk 0:00:06]}  Ka8 {[%clk 0:00:27]} 25. Rc5 {[%clk 0:00:05]}  Rd3 {[%clk 0:00:19]} 26. Rac1 {[%clk 0:00:03]}  Rgd8 {[%clk 0:00:18]} 27. Qf3 {[%clk 0:00:02]}  e5 {[%clk 0:00:17]} 28. R5c2 {[%clk 0:00:02]}  Qe6 {[%clk 0:00:16]} 29. Re2 {[%clk 0:00:02]}  f5 {[%clk 0:00:17]} 30. Ree1 {[%clk 0:00:02]}  e4 {[%clk 0:00:17]} 31. Qe2 {[%clk 0:00:03]}  Qe5 {[%clk 0:00:17]} 32. Nd4 {[%clk 0:00:04]}  c5 {[%clk 0:00:16]} 33. Nb5 {[%clk 0:00:04]}  Rd2 {[%clk 0:00:16]} 34. Qf1 {[%clk 0:00:04]}  a6 {[%clk 0:00:16]} 35. Nc3 {[%clk 0:00:04]}  Rxb2 {[%clk 0:00:16]} 36. Red1 {[%clk 0:00:05]}  Rxd1 {[%clk 0:00:15]} 37. Qxd1 {[%clk 0:00:06]}  Ka7 {[%clk 0:00:15]} 38. Na4 {[%clk 0:00:06]}  Rb5 {[%clk 0:00:15]} 39. Nc3 {[%clk 0:00:06]}  Rb4 {[%clk 0:00:15]} 40. Nd5 {[%clk 0:00:06]}  b6 {[%clk 0:00:13]} 41. Nxb4 {[%clk 0:00:06]}  cxb4 {[%clk 0:00:13]} 42. Qd7+ {[%clk 0:00:07]}  Kb8 {[%clk 0:00:13]} 43. Rc8# {[%clk 0:00:07]} 1-0


[Site "https://www.chess.com"]

[Event "Titled Tuesday Blitz May 30 Early 2023"]
[White "mohsengabr2002"]
[Black "Filgueira, Hernan"]
[BlackFideId "101770"]
[WhiteElo "2253"]
[BlackElo "2363"]
[Result "1/2-1/2"]
[Round "04"]
[TimeControl "180+2"]
[Date "2023.05.30"]
[WhiteClock "0:01:46"]
[BlackClock "0:02:18"]

1. e4 {[%clk 0:03:00]}  d6 {[%clk 0:02:59]} 2. d4 {[%clk 0:03:00]}  Nf6 {[%clk 0:02:59]} 3. Nc3 {[%clk 0:03:00]}  c6 {[%clk 0:02:59]} 4. f3 {[%clk 0:02:59]}  b5 {[%clk 0:02:59]} 5. Nge2 {[%clk 0:02:58]}  e6 {[%clk 0:02:58]} 6. Be3 {[%clk 0:02:58]}  a5 {[%clk 0:02:58]} 7. Qd2 {[%clk 0:02:58]}  b4 {[%clk 0:02:58]} 8. Nd1 {[%clk 0:02:57]}  d5 {[%clk 0:02:58]} 9. e5 {[%clk 0:02:57]}  Nfd7 {[%clk 0:02:58]} 10. c3 {[%clk 0:02:54]}  c5 {[%clk 0:02:57]} 11. f4 {[%clk 0:02:53]}  Nc6 {[%clk 0:02:56]} 12. Nf2 {[%clk 0:02:52]}  Ba6 {[%clk 0:02:54]} 13. Nd3 {[%clk 0:02:42]}  Qb6 {[%clk 0:02:51]} 14. dxc5 {[%clk 0:02:37]}  Nxc5 {[%clk 0:02:50]} 15. Nxc5 {[%clk 0:02:36]}  Bxc5 {[%clk 0:02:49]} 16. Bxc5 {[%clk 0:02:37]}  Qxc5 {[%clk 0:02:50]} 17. Rc1 {[%clk 0:02:35]}  Qb6 {[%clk 0:02:47]} 18. Nd4 {[%clk 0:02:29]}  Nxd4 {[%clk 0:02:46]} 19. Qxd4 {[%clk 0:02:25]}  Qxd4 {[%clk 0:02:46]} 20. cxd4 {[%clk 0:02:25]}  Bxf1 {[%clk 0:02:46]} 21. Rxf1 {[%clk 0:02:26]}  Kd7 {[%clk 0:02:46]} 22. Kd2 {[%clk 0:02:24]}  g6 {[%clk 0:02:45]} 23. Rc5 {[%clk 0:02:21]}  Rhc8 {[%clk 0:02:43]} 24. Rfc1 {[%clk 0:02:21]}  Rxc5 {[%clk 0:02:43]} 25. Rxc5 {[%clk 0:02:21]}  h5 {[%clk 0:02:43]} 26. g3 {[%clk 0:02:21]}  a4 {[%clk 0:02:37]} 27. Rb5 {[%clk 0:02:20]}  b3 {[%clk 0:02:36]} 28. axb3 {[%clk 0:02:20]}  axb3 {[%clk 0:02:37]} 29. Rxb3 {[%clk 0:02:20]}  Ra1 {[%clk 0:02:37]} 30. Rb7+ {[%clk 0:02:13]}  Ke8 {[%clk 0:02:36]} 31. Rb8+ {[%clk 0:02:05]}  Ke7 {[%clk 0:02:35]} 32. Rb7+ {[%clk 0:02:06]}  Ke8 {[%clk 0:02:36]} 33. Rb3 {[%clk 0:02:05]}  Rh1 {[%clk 0:02:34]} 34. h4 {[%clk 0:02:04]}  Kd7 {[%clk 0:02:33]} 35. Rd3 {[%clk 0:02:02]}  Kc6 {[%clk 0:02:31]} 36. Rc3+ {[%clk 0:02:02]}  Kb6 {[%clk 0:02:30]} 37. Kc2 {[%clk 0:02:00]}  Rg1 {[%clk 0:02:26]} 38. Rd3 {[%clk 0:01:57]}  Rg2+ {[%clk 0:02:25]} 39. Kc3 {[%clk 0:01:57]}  Kb5 {[%clk 0:02:24]} 40. Kb3 {[%clk 0:01:55]}  Rf2 {[%clk 0:02:22]} 41. Rc3 {[%clk 0:01:52]}  Kb6 {[%clk 0:02:21]} 42. Rd3 {[%clk 0:01:50]}  Kb5 {[%clk 0:02:21]} 43. Kc3 {[%clk 0:01:49]}  Rf1 {[%clk 0:02:20]} 44. Kb3 {[%clk 0:01:46]}  Rf2 {[%clk 0:02:18]} 1/2-1/2


[Site "https://www.chess.com"]